fUSD/lending_fUSD_20250911
["ID","MTS","AMOUNT","RATE_DAILY","PERIOD"]
[384828780,1757575859570,-1000.0,0.00030777,7]
[384828781,1757575859646,-645.11,0.00030777,7]
[384828782,1757575859721,-668.6,0.00030777,7]
[384828783,1757575859812,-791.03,0.00030777,7]
[384828784,1757575859891,-382.14313457,0.00030777,7]
[384828785,1757575859972,-400.0,0.00030777,7]
[384828786,1757575860062,-400.0,0.00030777,7]
[384828787,1757575860143,-400.0,0.00030777,7]
[384828788,1757575860224,-1085.22,0.00030777,7]
[384828789,1757575860315,-500.08,0.00030777,7]
[384828790,1757575860401,-6683.2,0.00030777,7]
[384828791,1757575860482,-400.0,0.00030777,7]
[384828792,1757575860561,-2124.71,0.00030777,7]
[384828793,1757575860640,-400.0,0.00030777,7]
[384828794,1757575860714,-400.0,0.00030777,7]
[384828795,1757575860794,-400.0,0.00030777,7]
[384828796,1757575860875,-400.0,0.00030777,7]
[384828797,1757575860953,-2568.48,0.00030777,7]
[384828798,1757575861030,-400.0,0.00030777,7]
[384828799,1757575861107,-400.0,0.00030777,7]
[384828800,1757575861191,-1219.06,0.00030777,7]
[384828801,1757575861272,-561.21,0.00030777,7]
[384828802,1757575861381,-400.0,0.00030777,7]
[384828803,1757575861469,-400.0,0.00030777,7]
[384828804,1757575861555,-446.0257537,0.00030777,7]
[384828805,1757575861644,-716.29,0.00030777,7]
[384828806,1757575861728,-400.0,0.00030777,7]
[384828807,1757575861809,-675.1,0.00030777,7]
[384828808,1757575861911,-400.0,0.00030777,7]
[384828809,1757575862010,-440.68470691,0.00030777,7]
[384828810,1757575862094,-1113.32,0.00030777,7]
[384828811,1757575862172,-473.34,0.00030777,7]
[384828812,1757575862253,-400.0,0.00030777,7]
[384828813,1757575862339,-909.46,0.00030777,7]
[384828814,1757575862422,-433.11,0.00030777,7]
[384828815,1757575862507,-3563.3648598,0.00030784,2]
[384828816,1757575862594,-612.79,0.00030785,7]
[384828817,1757575862679,-645.63,0.00030785,7]
[384828818,1757575862760,-461.56,0.00030785,7]
[384828819,1757575862841,-777.7,0.00030785,7]
[384828820,1757575862946,-487.54,0.00030785,7]
[384828821,1757575863042,-1301.99,0.00030785,7]
[384828822,1757575863132,-403.9,0.00030785,7]
[384828823,1757575863224,-400.0,0.00030785,7]
[384828824,1757575863325,-463.19,0.00030785,7]
[384828826,1757575863427,-803.16,0.00030785,7]
[384828827,1757575863531,-616.75,0.00030785,7]
[384828828,1757575863636,-400.0,0.00030785,7]
[384828829,1757575863737,-535.5,0.00030785,7]
[384828830,1757575863844,-400.0,0.00030785,7]
[384828831,1757575863946,-400.0,0.00030785,7]
[384828832,1757575864043,-400.0,0.00030785,7]
[384828833,1757575864150,-400.0,0.00030785,7]
[384828834,1757575864581,-739.14,0.00030785,7]
[384828835,1757575864675,-443.21,0.00030785,7]
[384828836,1757575864763,-400.0,0.00030785,7]
[384828837,1757575864858,-400.0,0.00030785,7]
[384828838,1757575864955,-815.14,0.00030785,7]
[384828839,1757575865052,-400.0,0.00030785,7]
[384828840,1757575865133,-400.0,0.00030785,7]
[384828841,1757575865216,-400.0,0.00030785,7]
[384828842,1757575865306,-638.22,0.00030785,7]
[384828843,1757575865392,-400.0,0.00030785,7]
[384828844,1757575865483,-739.02,0.00030785,7]
[384828845,1757575865570,-400.0,0.00030785,7]
[384828846,1757575865656,-475.38,0.00030785,7]
[384828847,1757575865756,-772.19,0.00030785,7]
[384828848,1757575865860,-400.0,0.00030785,7]
[384828849,1757575865948,-400.0,0.00030785,7]
[384828850,1757575866032,-490.7,0.00030785,7]
[384828851,1757575866114,-439.79,0.00030785,7]
[384828852,1757575866196,-961.35,0.00030785,7]
[384828853,1757575866275,-529.43,0.00030785,7]
[384828854,1757575866364,-476.37,0.00030785,7]
[384828855,1757575866447,-674.67,0.00030785,7]
[384828856,1757575866526,-730.49,0.00030785,7]
[384828857,1757575866605,-400.0,0.00030785,7]
[384828858,1757575866683,-659.8,0.00030785,7]
[384828859,1757575866758,-564.39,0.00030785,7]
[384828860,1757575866837,-400.0,0.00030785,7]
[384828861,1757575866916,-792.39,0.00030785,7]
[384828862,1757575866997,-483.7,0.00030785,7]
[384828863,1757575867083,-400.0,0.00030785,7]
[384828864,1757575867190,-400.0,0.00030785,7]
[384828865,1757575867274,-914.78,0.00030785,7]
[384828866,1757575867358,-752.94,0.00030785,7]
[384828867,1757575867442,-400.0,0.00030785,7]
[384828868,1757575867534,-497.41,0.00030785,7]
[384828869,1757575867641,-511.92,0.00030785,7]
[384828870,1757575867723,-448.18,0.00030785,7]
[384828871,1757575867808,-400.0,0.00030785,7]
[384828872,1757575867892,-817.73,0.00030785,7]
[384828873,1757575867973,-400.0,0.00030785,7]
[384828874,1757575868056,-400.0,0.00030785,7]
[384828875,1757575868141,-704.91,0.00030785,7]
[384828876,1757575868223,-400.0,0.00030785,7]
[384828877,1757575868305,-644.74,0.00030785,7]
[384828878,1757575868391,-664.13,0.00030785,7]
[384828879,1757575868474,-2512.55,0.00030785,7]
[384828880,1757575868565,-520.06,0.00030785,7]
[384828881,1757575868649,-3023.24,0.00030785,7]
[384828882,1757575868736,-582.78,0.00030785,7]
[384828883,1757575868825,-925.54,0.00030785,7]
[384828884,1757575868919,-400.0,0.00030785,7]
[384828885,1757575869006,-909.49,0.00030785,7]
[384828886,1757575869094,-1731.66,0.00030785,7]
[384828887,1757575869177,-400.0,0.00030785,7]
[384828888,1757575869260,-674.31,0.00030785,7]
[384828889,1757575869344,-1115.19,0.00030785,7]
[384828890,1757575869427,-797.34,0.00030785,7]
[384828891,1757575869535,-400.0,0.00030785,7]
[384828892,1757575869624,-400.0,0.00030785,7]
[384828893,1757575869705,-400.0,0.00030785,7]
[384828894,1757575869792,-561.82,0.00030785,7]
[384828895,1757575869879,-934.84,0.00030785,7]
[384828896,1757575869967,-500.81,0.00030785,7]
[384828897,1757575870054,-400.0,0.00030785,7]
[384828898,1757575870148,-693.33,0.00030785,7]
[384828899,1757575870233,-610.36,0.00030785,7]
[384828900,1757575870321,-400.0,0.00030785,7]
[384828901,1757575870408,-400.0,0.00030785,7]
[384828902,1757575870489,-1289.72,0.00030785,7]
[384828903,1757575870570,-400.0,0.00030785,7]
[384828904,1757575870647,-400.0,0.00030785,7]
[384828905,1757575870727,-1731.62,0.00030785,7]
[384828906,1757575870823,-775.18,0.00030785,7]
[384828907,1757575870906,-400.0,0.00030785,7]
[384828908,1757575870994,-624.98,0.00030785,7]
[384828909,1757575871078,-709.71,0.00030785,7]
[384828910,1757575871162,-425.72864652,0.00030785,7]
[384828911,1757575871243,-400.0,0.00030785,7]
[384828912,1757575871345,-400.0,0.00030785,7]
[384828913,1757575871430,-930.14,0.00030785,7]
[384828914,1757575871515,-400.0,0.00030785,7]
[384828915,1757575871601,-400.0,0.00030785,7]
[384828916,1757575871685,-1201.36,0.00030785,7]
[384828917,1757575871770,-566.67,0.00030785,7]
[384828918,1757575871861,-400.0,0.00030785,7]
[384828919,1757575871973,-400.0,0.00030785,7]
[384828920,1757575872081,-300.0,0.00030785,7]
[384828921,1757575872170,-1209.42,0.00030785,7]
[384828922,1757575872254,-400.0,0.00030785,7]
[384828923,1757575872339,-675.84,0.00030785,7]
[384828924,1757575872421,-798.89,0.00030785,7]
[384828925,1757575872503,-665.51,0.00030785,7]
[384828926,1757575872586,-594.53,0.00030785,7]
[384828927,1757575872666,-400.0,0.00030785,7]
[384828928,1757575872742,-400.0,0.00030785,7]
[384828929,1757575872820,-807.84,0.00030785,7]
[384828930,1757575872901,-1747.03,0.00030785,7]
[384828931,1757575872980,-400.0,0.00030785,7]
[384828932,1757575873058,-400.0,0.00030785,7]
[384828933,1757575873140,-408.02,0.00030785,7]
[384828934,1757575873220,-1212.37,0.00030785,7]
[384828935,1757575873299,-431.1336472,0.00030785,7]
[384828936,1757575873380,-2041.89,0.00030785,7]
[384828937,1757575873811,-562.72,0.00030785,7]
[384828938,1757575873903,-400.0,0.00030785,7]
[384828939,1757575873986,-549.02,0.00030785,7]
[384828940,1757575874075,-447.69,0.00030785,7]
[384828943,1757575874172,-2153.25,0.00030785,7]
[384828944,1757575874259,-400.0,0.00030785,7]
[384828946,1757575874341,-400.0,0.00030785,7]
[384828948,1757575874428,-3652.29,0.00030785,7]
[384828950,1757575874506,-969.75,0.00030785,7]
[384828952,1757575874589,-400.0,0.00030785,7]
[384828954,1757575874667,-400.0,0.00030785,7]
[384828956,1757575874744,-555.45,0.00030785,7]
[384828958,1757575874824,-497.93,0.00030785,7]
[384828960,1757575874912,-400.0,0.00030785,7]
[384828961,1757575874996,-3128.86,0.00030785,7]
[384828962,1757575875078,-553.1,0.00030785,7]
[384828963,1757575875154,-575.65,0.00030785,7]
[384828964,1757575875236,-614.24,0.00030785,7]
[384828965,1757575875323,-400.0,0.00030785,7]
[384828966,1757575875407,-400.0,0.00030785,7]
[384828967,1757575875495,-747.66,0.00030785,7]
[384828968,1757575875576,-400.0,0.00030785,7]
[384828969,1757575875664,-400.0,0.00030785,7]
[384828970,1757575875744,-400.0,0.00030785,7]
[384828971,1757575875832,-673.25,0.00030785,7]
[384828972,1757575875916,-634.16,0.00030785,7]
[384828973,1757575876005,-400.0,0.00030785,7]
[384828974,1757575876093,-400.0,0.00030785,7]
[384828975,1757575876176,-467.67,0.00030785,7]
[384828976,1757575876258,-400.0,0.00030785,7]
[384828977,1757575876342,-677.51,0.00030785,7]
[384828978,1757575876425,-840.58,0.00030785,7]
[384828979,1757575876505,-441.61,0.00030786,7]
[384828980,1757575876590,-1351.51,0.00030786,7]
[384828981,1757575876673,-400.0,0.00030797,7]
[384828982,1757575876759,-403.54,0.00030797,7]
[384828983,1757575876851,-411.34346868,0.00030797,7]
[384828984,1757575876933,-400.0,0.00030797,7]
[384828985,1757575877012,-438.55,0.00030797,7]
[384828986,1757575877093,-400.0,0.00030797,7]
[384828987,1757575877170,-682.59,0.00030797,7]
[384828988,1757575877250,-400.0,0.00030797,7]
[384828989,1757575877332,-400.0,0.00030797,7]
[384828990,1757575877414,-515.91,0.00030797,7]
[384828991,1757575877492,-400.0,0.00030797,7]
[384828992,1757575877571,-400.0,0.00030797,7]
[384828993,1757575877650,-544.49,0.00030797,7]
[384828994,1757575877728,-400.0,0.00030797,7]
[384828995,1757575877807,-400.0,0.00030797,7]
[384828996,1757575877892,-400.0,0.00030797,7]
[384828997,1757575877975,-400.0,0.00030797,7]
[384828998,1757575878058,-400.0,0.00030797,7]
[384828999,1757575878156,-797.4,0.00030797,7]
[384829000,1757575878237,-414.20943586,0.00030797,7]
[384829001,1757575878317,-416.49918558,0.00030797,7]
[384829002,1757575878399,-400.0,0.00030797,7]
[384829003,1757575878484,-302.22156299,0.00030797,7]
[384829004,1757575878566,-400.0,0.00030797,7]
[384829005,1757575878643,-611.48,0.00030797,7]
[384829006,1757575878722,-665.1,0.00030797,7]
[384829007,1757575878799,-400.0,0.00030797,7]
[384829008,1757575878880,-400.0,0.00030797,7]
[384829009,1757575878959,-400.0,0.00030797,7]
[384829010,1757575879038,-792.88,0.00030797,7]
[384829011,1757575879118,-400.0,0.00030797,7]
[384829012,1757575879196,-400.0,0.00030797,7]
[384829013,1757575879275,-446.31,0.00030797,7]
[384829014,1757575879354,-594.61,0.00030797,7]
[384829015,1757575879432,-400.0,0.00030797,7]
[384829016,1757575879516,-400.0,0.00030797,7]
[384829017,1757575879616,-400.0,0.00030797,7]
[384829018,1757575879703,-400.0,0.00030797,7]
[384829019,1757575879787,-400.0,0.00030797,7]
[384829020,1757575879871,-408.16783543,0.00030797,7]
[384829021,1757575879952,-409.75,0.00030797,7]
[384829022,1757575880034,-400.0,0.00030797,7]
[384829023,1757575880114,-609.03,0.00030797,7]
[384829024,1757575880191,-400.0,0.00030797,7]
[384829025,1757575880271,-733.03,0.00030797,7]
[384829026,1757575880350,-400.0,0.00030797,7]
[384829027,1757575880430,-400.0,0.00030797,7]
[384829028,1757575880509,-400.0,0.00030797,7]
[384829029,1757575880593,-408.87793054,0.00030797,7]
[384829030,1757575880677,-472.88,0.00030797,7]
[384829031,1757575880765,-1233.9,0.00030797,7]
[384829032,1757575880866,-400.0,0.00030797,7]
[384829033,1757575880967,-400.0,0.00030797,7]
[384829034,1757575881055,-400.0,0.00030797,7]
[384829035,1757575881144,-400.0,0.00030797,7]
[384829036,1757575881224,-400.0,0.00030797,7]
[384829037,1757575881311,-400.0,0.00030797,7]
[384829038,1757575881392,-400.0,0.00030797,7]
[384829039,1757575881468,-496.51,0.00030797,7]
[384829040,1757575881545,-400.0,0.00030797,7]
[384829041,1757575881624,-211.79882887,0.00030797,7]
[384829042,1757575881701,-400.0,0.00030797,7]
[384829043,1757575881782,-400.0,0.00030797,7]
[384829044,1757575881863,-400.0,0.00030797,7]
[384829045,1757575881947,-400.0,0.00030797,7]
[384829046,1757575882024,-400.0,0.00030797,7]
[384829047,1757575882105,-400.0,0.00030797,7]
[384829048,1757575882182,-400.0,0.00030797,7]
[384829049,1757575882259,-400.0,0.00030797,7]
[384829050,1757575882337,-400.0,0.00030797,7]
[384829051,1757575882751,-412.59971743,0.00030797,7]
[384829052,1757575882839,-541.9,0.00030797,7]
[384829053,1757575882925,-416.66,0.00030797,7]
[384829054,1757575883008,-531.11573546,0.00030797,7]
[384829055,1757575883087,-400.0,0.00030797,7]
[384829056,1757575883163,-447.22,0.00030797,7]
[384829057,1757575883235,-400.0,0.00030797,7]
[384829058,1757575883311,-400.0,0.00030797,7]
[384829059,1757575883388,-400.0,0.00030797,7]
[384829060,1757575883462,-400.0,0.00030797,7]
[384829061,1757575883549,-273.12850096,0.00030797,7]
[384829062,1757575883626,-400.0,0.00030797,7]
[384829063,1757575883703,-400.0,0.00030797,7]
[384829064,1757575883808,-400.0,0.00030797,7]
[384829066,1757575883893,-400.0,0.00030797,7]
[384829067,1757575883975,-400.0,0.00030797,7]
[384829069,1757575884062,-400.0,0.00030797,7]
[384829071,1757575884153,-400.0,0.00030797,7]
[384829073,1757575884244,-400.0,0.00030797,7]
[384829075,1757575884326,-400.0,0.00030797,7]
[384829077,1757575884413,-400.0,0.00030797,7]
[384829078,1757575884504,-400.0,0.00030797,7]
[384829080,1757575884592,-743.07,0.00030797,7]
[384829082,1757575884673,-400.0,0.00030797,7]
[384829084,1757575884762,-400.0,0.00030797,7]
[384829086,1757575884842,-661.34,0.00030797,7]
[384829088,1757575884923,-400.0,0.00030797,7]
[384829090,1757575885004,-400.0,0.00030797,7]
[384829091,1757575885083,-400.0,0.00030797,7]
[384829092,1757575885158,-657.64,0.00030797,7]
[384829093,1757575885243,-413.57,0.00030797,7]
[384829094,1757575885328,-400.0,0.00030797,7]
[384829096,1757575885411,-400.0,0.00030797,7]
[384829098,1757575885496,-400.0,0.00030797,7]
[384829100,1757575885573,-523.01,0.00030797,7]
[384829101,1757575885664,-400.0,0.00030797,7]
[384829104,1757575885770,-423.53342316,0.00030797,7]
[384829106,1757575885875,-400.0,0.00030797,7]
[384829108,1757575885974,-300.0,0.00030797,7]
[384829110,1757575886063,-418.71347112,0.00030797,7]
[384829112,1757575886159,-445.02,0.00030797,7]
[384829114,1757575886250,-400.0,0.00030797,7]
[384829116,1757575886346,-400.0,0.00030797,7]
[384829117,1757575886435,-452.7,0.00030797,7]
[384829118,1757575886518,-440.17,0.00030797,7]
[384829120,1757575886604,-400.0,0.00030797,7]
[384829122,1757575886690,-459.31,0.00030797,7]
[384829123,1757575886776,-400.0,0.00030797,7]
[384829124,1757575886861,-400.0,0.00030797,7]
[384829125,1757575886946,-400.0,0.00030797,7]
[384829126,1757575887031,-400.0,0.00030797,7]
[384829127,1757575887113,-400.0,0.00030797,7]
[384829128,1757575887198,-1831.05,0.00030797,7]
[384829129,1757575887282,-400.0,0.00030797,7]
[384829130,1757575887369,-400.0,0.00030797,7]
[384829131,1757575887449,-400.0,0.00030797,7]
[384829132,1757575887545,-400.0,0.00030797,7]
[384829133,1757575887635,-400.0,0.00030797,7]
[384829134,1757575887721,-405.19769292,0.00030797,7]
[384829135,1757575887811,-400.0,0.00030797,7]
[384829136,1757575887902,-400.0,0.00030797,7]
[384829137,1757575887986,-412.17338987,0.00030797,7]
[384829138,1757575888071,-1545.99,0.00030797,7]
[384829139,1757575888153,-1823.45,0.00030797,7]
[384829140,1757575888233,-400.0,0.00030797,7]
[384829141,1757575888315,-400.0,0.00030797,7]
[384829142,1757575888396,-521.45169038,0.00030797,7]
[384829143,1757575888481,-400.0,0.00030797,7]
[384829144,1757575888562,-516.84,0.00030797,7]
[384829145,1757575888643,-400.0,0.00030797,7]
[384829146,1757575888723,-400.0,0.00030797,7]
[384829147,1757575888812,-1019.67,0.00030797,7]
[384829148,1757575888897,-400.0,0.00030797,7]
[384829149,1757575888983,-4017.8,0.00030797,5]
[384829150,1757575889067,-400.0,0.00030797,7]
[384829151,1757575889152,-416.21363643,0.00030797,7]
[384829152,1757575889236,-1481.48,0.00030797,7]
[384829153,1757575889320,-400.67,0.00030797,7]
[384829154,1757575889405,-400.0,0.00030797,7]
[384829155,1757575889488,-400.0,0.00030797,7]
[384829156,1757575889575,-400.0,0.00030797,7]
[384829157,1757575889654,-400.0,0.00030797,7]
[384829158,1757575889730,-400.0,0.00030797,7]
[384829159,1757575889809,-400.0,0.00030797,7]
[384829160,1757575889893,-689.71,0.00030797,7]
[384829161,1757575889976,-400.0,0.00030797,7]
[384829162,1757575890061,-400.0,0.00030797,7]
[384829163,1757575890142,-400.0,0.00030797,7]
[384829164,1757575890245,-632.22,0.00030797,7]
[384829165,1757575890354,-400.0,0.00030797,7]
[384829166,1757575890437,-170.59373963,0.00030797,7]
[384829167,1757575890522,-400.0,0.00030797,7]
[384829168,1757575890600,-1589.17,0.00030797,7]
[384829169,1757575890679,-400.0,0.00030797,7]
[384829170,1757575890758,-204.65054331,0.00030797,7]
[384829171,1757575890836,-400.0,0.00030797,7]
[384829172,1757575890917,-400.0,0.00030797,7]
[384829173,1757575890998,-400.0,0.00030797,7]
[384829174,1757575891080,-481.26,0.00030797,7]
[384829175,1757575891161,-400.0,0.00030797,7]
[384829176,1757575891241,-400.0,0.00030797,7]
[384829177,1757575891330,-596.87,0.00030797,7]
[384829178,1757575891417,-400.0,0.00030797,7]
[384829179,1757575891767,-400.0,0.00030797,7]
[384829180,1757575891852,-400.0,0.00030797,7]
[384829181,1757575891934,-415.1405775,0.00030797,7]
[384829182,1757575892032,-400.0,0.00030797,7]
[384829183,1757575892121,-381.27958023,0.00030797,7]
[384829184,1757575892202,-400.0,0.00030797,7]
[384829185,1757575892284,-400.0,0.00030797,7]
[384829186,1757575892367,-400.0,0.00030797,7]
[384829187,1757575892449,-400.0,0.00030797,7]
[384829188,1757575892528,-400.0,0.00030797,7]
[384829189,1757575892608,-400.0,0.00030797,7]
[384829190,1757575892685,-400.0,0.00030797,7]
[384829191,1757575892763,-754.72,0.00030797,7]
[384829192,1757575892851,-400.0,0.00030797,7]
[384829193,1757575892936,-400.0,0.00030797,7]
[384829194,1757575893024,-400.0,0.00030797,7]
[384829195,1757575893113,-836.95,0.00030797,7]
[384829196,1757575893196,-400.0,0.00030797,7]
[384829197,1757575893275,-400.0,0.00030797,7]
[384829198,1757575893358,-400.0,0.00030797,7]
[384829199,1757575893445,-466.94,0.00030797,7]
[384829200,1757575893532,-514.91,0.00030797,7]
[384829201,1757575893617,-400.0,0.00030797,7]
[384829202,1757575893703,-400.0,0.00030797,7]
[384829203,1757575893791,-792.7,0.00030797,7]
[384829205,1757575893874,-450.92687671,0.00030797,7]
[384829206,1757575893961,-400.0,0.00030797,7]
[384829207,1757575894043,-400.0,0.00030797,7]
[384829209,1757575894128,-400.0,0.00030797,7]
[384829211,1757575894203,-400.0,0.00030797,7]
[384829213,1757575894278,-400.0,0.00030797,7]
[384829215,1757575894358,-436.97,0.00030797,7]
[384829217,1757575894450,-400.0,0.00030797,7]
[384829219,1757575894533,-400.0,0.00030797,7]
[384829221,1757575894636,-400.0,0.00030797,7]
[384829223,1757575894723,-400.0,0.00030797,7]
[384829225,1757575894810,-676.0,0.00030797,7]
[384829227,1757575894898,-400.0,0.00030797,7]
[384829229,1757575894984,-400.0,0.00030797,7]
[384829230,1757575895063,-634.11,0.00030797,7]
[384829231,1757575895146,-400.0,0.00030797,7]
[384829232,1757575895230,-559.8,0.00030797,7]
[384829233,1757575895311,-400.0,0.00030797,7]
[384829234,1757575895396,-811.3,0.00030797,7]
[384829235,1757575895483,-408.83607962,0.00030797,7]
[384829236,1757575895571,-400.0,0.00030797,7]
[384829237,1757575895657,-407.13224061,0.00030797,7]
[384829238,1757575895740,-872.82,0.00030797,7]
[384829239,1757575895845,-400.0,0.00030797,7]
[384829240,1757575895937,-610.73,0.00030797,7]
[384829241,1757575896026,-1321.6,0.00030797,7]
[384829242,1757575896113,-400.0,0.00030797,7]
[384829243,1757575896204,-400.0,0.00030797,7]
[384829244,1757575896287,-400.0,0.00030797,7]
[384829245,1757575896370,-400.0,0.00030797,7]
[384829246,1757575896451,-835.08,0.00030797,7]
[384829247,1757575896529,-540.76,0.00030797,7]
[384829248,1757575896607,-1068.8,0.00030797,7]
[384829249,1757575896686,-406.66487511,0.00030797,7]
[384829250,1757575896769,-529.45,0.00030797,7]
[384829251,1757575896845,-400.0,0.00030797,7]
[384829252,1757575896924,-400.0,0.00030797,7]
[384829253,1757575897002,-938.28,0.00030797,7]
[384829254,1757575897081,-687.64,0.00030797,7]
[384829255,1757575897156,-780.08,0.00030797,7]
[384829256,1757575897242,-410.10704251,0.00030797,7]
[384829257,1757575897320,-400.0,0.00030797,7]
[384829258,1757575897403,-738.18,0.00030797,7]
[384829259,1757575897482,-400.0,0.00030797,7]
[384829260,1757575897563,-400.0,0.00030797,7]
[384829261,1757575897643,-601.12,0.00030797,7]
[384829262,1757575897720,-569.58,0.00030797,7]
[384829263,1757575897805,-587.01,0.00030797,7]
[384829264,1757575897886,-945.48,0.00030797,7]
[384829265,1757575897963,-400.0,0.00030797,7]
[384829266,1757575898044,-400.0,0.00030797,7]
[384829268,1757575898127,-544.31,0.00030797,7]
[384829269,1757575898204,-400.0,0.00030797,7]
[384829270,1757575898286,-631.21,0.00030797,7]
[384829271,1757575898364,-400.0,0.00030797,7]
[384829272,1757575898444,-852.2,0.00030797,7]
[384829273,1757575898534,-400.0,0.00030797,7]
[384829274,1757575898610,-408.51786379,0.00030797,7]
[384829275,1757575898687,-1037.97,0.00030797,7]
[384829276,1757575898764,-400.0,0.00030797,7]
[384829277,1757575898842,-550.32,0.00030797,7]
[384829278,1757575898921,-1101.83,0.00030797,7]
[384829279,1757575898999,-400.0,0.00030797,7]
[384829280,1757575899080,-771.6,0.00030797,7]
[384829281,1757575899158,-400.0,0.00030797,7]
[384829282,1757575899236,-875.62,0.00030797,7]
[384829283,1757575899313,-271.27558632,0.00030797,7]
[384829284,1757575899390,-400.0,0.00030797,7]
[384829285,1757575899464,-864.22,0.00030797,7]
[384829286,1757575899541,-400.0,0.00030797,7]
[384829287,1757575899618,-400.0,0.00030797,7]
[384829288,1757575899691,-400.0,0.00030797,7]
[384829289,1757575899767,-400.0,0.00030797,7]
[384829290,1757575899845,-400.0,0.00030797,7]
[384829291,1757575899925,-884.44,0.00030797,7]
[384829292,1757575900016,-400.0,0.00030797,7]
[384829293,1757575900095,-987.99,0.00030797,7]
[384829294,1757575900173,-400.0,0.00030797,7]
[384829295,1757575900248,-406.21,0.00030797,7]
[384829296,1757575900552,-400.0,0.00030797,7]
[384829297,1757575900635,-500.0,0.00030797,7]
[384829298,1757575900709,-400.0,0.00030797,7]
[384829299,1757575900785,-665.84,0.00030797,7]
[384829300,1757575900864,-846.03,0.00030797,7]
[384829301,1757575900943,-400.0,0.00030797,7]
[384829302,1757575901026,-400.0,0.00030797,7]
[384829303,1757575901106,-400.0,0.00030797,7]
[384829304,1757575901183,-400.0,0.00030797,7]
[384829305,1757575901263,-500.0,0.00030798,7]
[384829306,1757575901339,-250.0,0.000308,2]
[384829307,1757575901416,-203.21820815,0.000308,2]
[384829308,1757575901490,-150.0,0.000308,2]
[384829309,1757575901563,-500.0,0.000308,2]
[384829310,1757575901636,-201.75418777,0.000308,2]
[384829311,1757575901710,-500.0,0.000308,2]
[384829312,1757575901786,-500.0,0.000308,2]
[384829313,1757575901863,-500.0,0.000308,2]
[384829315,1757575901938,-575.0,0.000308,2]
[384829316,1757575902011,-500.0,0.000308,2]
[384829317,1757575902085,-500.0,0.000308,2]
[384829318,1757575902158,-150.0,0.000308,2]
[384829319,1757575902231,-1000.0,0.000308,30]
[384829320,1757575902309,-1000.0,0.000308,60]
[384829321,1757575902389,-1000.0,0.000308,2]
[384829322,1757575902469,-455.25328306,0.00030821,5]
[384829323,1757575902571,-1190.64,0.00030822,2]
[384829324,1757575902678,-1190.64,0.00030822,2]
[384829325,1757575902758,-1190.64,0.00030822,2]
[384829326,1757575902850,-174.46,0.00030822,2]
[384829327,1757575902946,-1190.64,0.00030822,2]
[384829328,1757575903037,-409.88,0.00030822,2]
[384829329,1757575903127,-1079.66,0.00030822,2]